fUST/lending_fUST_20260111
["ID","MTS","AMOUNT","RATE_DAILY","PERIOD"]
[401268031,1768085449016,-500.0,0.00036712,30]
[401268032,1768085449026,-500.0,0.00036712,30]
[401268033,1768085449035,-95986.0676826,0.00036763,16]
[401268034,1768085449046,-2496.11668607,0.00036839,2]
[401268035,1768085449055,-761.21881426,0.00036863,2]
[401268036,1768085449064,-3041.8303818,0.00036863,2]
[401268037,1768085449074,-358.30304629,0.00036863,2]
[401268038,1768085449083,-1431.77897297,0.00036863,2]
[401268039,1768085449093,-10000.0,0.00036866,2]
[401268040,1768085449102,-312.48347739,0.00036896,2]
[401268041,1768085449112,-377.1655679,0.00036959,30]
[401268042,1768085449122,-151.6053793,0.00036963,120]
[401268043,1768085449131,-290.04952508,0.00036963,2]
[401268044,1768085449140,-2509.35859505,0.00037,120]
[401268045,1768085449150,-1149.9029988,0.00037033,2]
[401268046,1768085449159,-7726.6330449,0.00037033,2]
[401268047,1768085449168,-844.8127657,0.00037033,2]
[401268048,1768085449177,-773.8726961,0.00037033,2]
[401268049,1768085449186,-151.0,0.00037035,14]
[401268050,1768085449196,-160.0,0.00037035,120]
[401268051,1768085449206,-152.0,0.0003706,14]
[401268052,1768085449215,-152.0,0.0003706,14]
[401268053,1768085449224,-152.0,0.0003706,14]
[401268054,1768085449234,-214.57010533,0.0003706,14]
[401268055,1768085449243,-152.0,0.0003706,14]
[401268056,1768085449253,-152.0,0.0003706,14]
[401268057,1768085449263,-152.0,0.0003706,14]
[401268058,1768085449272,-152.0,0.0003706,14]
[401268059,1768085449281,-152.0,0.0003706,14]
[401268060,1768085449290,-152.0,0.0003706,14]
[401268061,1768085449300,-152.0,0.0003706,14]
[401268062,1768085449309,-152.0,0.0003706,14]
[401268063,1768085449319,-202.68303487,0.0003706,14]
[401268064,1768085449328,-157.421281,0.00037061,31]
[401268065,1768085449337,-151.0,0.00037061,31]
[401268066,1768085449347,-151.0,0.00037061,31]
[401268067,1768085449356,-151.0,0.00037061,31]
[401268068,1768085449366,-151.0,0.00037061,31]
[401268069,1768085449376,-151.0,0.00037061,31]
[401268070,1768085449385,-151.0,0.00037061,31]
[401268071,1768085449395,-151.0,0.00037061,31]
[401268072,1768085449405,-151.0,0.00037061,31]
[401268073,1768085449414,-151.0,0.00037061,31]
[401268074,1768085449425,-242.550437,0.00037061,31]
[401268075,1768085449434,-151.0,0.00037063,31]
[401268076,1768085449444,-277.124706,0.00037063,31]
[401268077,1768085449454,-151.0,0.00037063,28]
[401268078,1768085449464,-151.0,0.00037063,28]
[401268079,1768085449474,-151.0,0.00037063,28]
[401268080,1768085449483,-151.0,0.00037063,28]
[401268081,1768085449493,-241.887947,0.00037063,28]
[401268082,1768085449503,-315.18853,0.00037063,31]
[401268083,1768085449513,-315.18853,0.00037063,31]
[401268084,1768085449523,-315.18853,0.00037063,31]
[401268085,1768085449532,-315.18853,0.00037063,31]
[401268086,1768085449542,-315.18853,0.00037063,31]
[401268087,1768085449552,-315.18853,0.00037063,31]
[401268088,1768085449562,-315.18853,0.00037063,31]
[401268089,1768085449572,-315.18853,0.00037063,31]
[401268090,1768085449582,-315.18853,0.00037063,31]
[401268091,1768085449591,-315.18853,0.00037063,31]
[401268092,1768085449603,-315.18853,0.00037063,31]
[401268093,1768085449612,-315.18853,0.00037063,31]
[401268094,1768085449623,-315.18853,0.00037063,31]
[401268095,1768085449632,-315.18853,0.00037063,31]
[401268096,1768085449642,-315.18853,0.00037063,31]
[401268097,1768085449652,-315.188524,0.00037063,31]
[401268098,1768085449661,-151.0,0.00037063,31]
[401268099,1768085449670,-151.0,0.00037063,31]
[401268100,1768085449679,-151.0,0.00037063,31]
[401268101,1768085449688,-151.0,0.00037063,31]
[401268102,1768085449698,-214.28838,0.00037063,31]
[401268103,1768085449707,-163.913875,0.00037063,31]
[401268104,1768085449717,-396.49822753,0.00037065,20]
[401268105,1768085449726,-8073.0,0.00037065,20]
[401268106,1768085449736,-1998.70077528,0.00037065,14]
[401268107,1768085449745,-3808.02892874,0.00037065,7]
[401268108,1768085449754,-10722.0,0.00037065,10]
[401268109,1768085449764,-1236.55158233,0.00037065,2]
[401268110,1768085449773,-400.15412206,0.00037065,2]
[401268111,1768085449783,-1406.63172946,0.00037065,2]
[401268112,1768085449792,-199.12720171,0.00037065,2]
[401268113,1768085449801,-1005.0,0.00037065,6]
[401268114,1768085449811,-1547.92392078,0.00037065,7]
[401268115,1768085449820,-3893.381363,0.00037065,2]
[401268116,1768085449829,-1950548.50314936,0.00037065,20]
[401268148,1768086538427,155.0,8.246e-05,2]
[401268179,1768086631797,-166.66666668,0.00011604,2]
[401268180,1768086631807,-583.0,0.00011604,2]
[401268181,1768086631816,-300.0,0.00011836,2]
[401268182,1768086631826,-62730.42362255,0.00011837,2]
[401268183,1768086631837,-48468.22522427,0.00011837,2]
[401268761,1768086637967,-2737.0872181,0.00011837,2]
[401268763,1768086637978,-4747.00643768,0.00011837,2]
[401268765,1768086637989,-776.68808795,0.00011837,2]
[401268767,1768086638004,-386.51,0.00011837,2]
[401268770,1768086638014,-1997.99554256,0.00011837,2]
[401268772,1768086638025,-2105.12770447,0.00011837,2]
[401268774,1768086638036,-435.0,0.00011837,2]
[401268776,1768086638049,-875615.93616242,0.00011837,2]
[401268778,1768086638058,-50000.0,0.00011937,2]
[401268780,1768086638068,-300.0,0.00011937,2]
[401268782,1768086638077,-300.0,0.00011937,2]
[401268784,1768086638087,-300.0,0.00011937,2]
[401268786,1768086638096,-300.0,0.00011937,2]
[401268788,1768086638106,-300.0,0.00011937,2]
[401268790,1768086638115,-300.0,0.00011937,2]
[401268792,1768086638124,-300.0,0.00011937,2]
[401268794,1768086638134,-300.0,0.00011937,2]
[401268797,1768086638143,-300.0,0.00011937,2]
[401268799,1768086638152,-300.0,0.00011937,2]
[401268801,1768086638162,-300.0,0.00011937,2]
[401268803,1768086638171,-300.0,0.00011937,2]
[401268805,1768086638181,-300.0,0.00011937,2]
[401268807,1768086638190,-300.0,0.00011937,2]
[401268809,1768086638199,-300.0,0.00011937,2]
[401268810,1768086638209,-999.0,0.00011941,2]
[401268824,1768086638331,-600.0,0.00012175,2]
[401268827,1768086638348,-2632.9967419,0.00012205,2]
[401268828,1768086638359,-420.0,0.00012995,2]
[401268831,1768086638369,-1043.77934926,0.00013054,2]
[401268833,1768086638379,-502.12861093,0.00013273,2]
[401268835,1768086638392,-500.0,0.00013273,2]
[401268837,1768086638402,-323.03430659,0.00013273,2]
[401268839,1768086638415,-500.0,0.00013273,2]
[401268841,1768086638425,-348.02677521,0.00013273,2]
[401268843,1768086638434,-500.0,0.00013273,2]
[401268845,1768086638443,-500.0,0.00013273,2]
[401268847,1768086638453,-500.0,0.00013273,2]
[401268849,1768086638462,-500.0,0.00013273,2]
[401268851,1768086638473,-500.0,0.00013273,2]
[401268853,1768086638489,-500.0,0.00013273,2]
[401268855,1768086638505,-500.0,0.00013273,2]
[401268857,1768086638514,-500.0,0.00013273,2]
[401268859,1768086638523,-500.0,0.00013273,2]
[401268861,1768086638533,-500.0,0.00013273,2]
[401268863,1768086638543,-500.0,0.00013273,2]
[401268865,1768086638553,-500.0,0.00013273,2]
[401268867,1768086638562,-720.0,0.00013392,2]
[401268869,1768086638572,-300.0,0.00013673,2]
[401268871,1768086638581,-2001.305979,0.00013699,2]
[401268873,1768086638590,-900.827532,0.00013699,2]
[401268875,1768086638600,-374.8306527,0.00013699,2]
[401268877,1768086638609,-500.0,0.00013699,2]
[401268879,1768086638619,-283.3787305,0.00013699,2]
[401268881,1768086638629,-500.0,0.00013699,2]
[401268883,1768086638638,-500.0,0.00013699,2]
[401268885,1768086638648,-250.0,0.00013699,2]
[401268887,1768086638658,-500.0,0.00013699,2]
[401268889,1768086638667,-501.33075681,0.00013699,2]
[401268891,1768086638677,-615.04672569,0.00013699,2]
[401268893,1768086638686,-500.0,0.00013699,2]
[401268895,1768086638696,-500.0,0.00013699,2]
[401268897,1768086638706,-500.0,0.00013699,2]
[401268899,1768086638716,-500.0,0.00013699,2]
[401268901,1768086638725,-500.0,0.00013699,2]
[401268903,1768086638735,-500.0,0.00013699,2]
[401268905,1768086638744,-500.0,0.00013699,2]
[401268907,1768086638754,-500.0,0.00013699,2]
[401268909,1768086638764,-500.0,0.00013699,2]
[401268911,1768086638774,-500.16597086,0.00013699,2]
[401268913,1768086638784,-500.0,0.00013699,2]
[401268915,1768086638793,-500.0,0.00013699,2]
[401268917,1768086638803,-500.0,0.00013699,2]
[401268919,1768086638813,-500.0,0.00013699,2]
[401268921,1768086638822,-500.0,0.00013699,2]
[401268923,1768086638831,-500.0,0.00013699,2]
[401268925,1768086638841,-500.0,0.00013699,2]
[401268927,1768086638851,-503.14554213,0.00013699,2]
[401268929,1768086638861,-500.0,0.00013699,2]
[401268931,1768086638871,-500.0,0.00013699,2]
[401268933,1768086638880,-500.0,0.00013699,2]
[401268935,1768086638890,-500.0,0.00013699,2]
[401268937,1768086638900,-503.80919542,0.00013699,2]
[401268939,1768086638910,-177.0,0.0001377,2]
[401268941,1768086638919,-500.0,0.0001382,2]
[401268943,1768086638928,-500.0,0.0001382,2]
[401268945,1768086638938,-500.0,0.0001382,2]
[401268947,1768086638948,-192.68871316,0.0001382,2]
[401268949,1768086638958,-500.0,0.0001382,2]
[401268951,1768086638967,-500.0,0.0001382,2]
[401268953,1768086638977,-500.0,0.0001382,2]
[401268955,1768086638986,-500.0,0.0001382,2]
[401268957,1768086638996,-238.22541035,0.0001382,2]
[401268959,1768086639005,-500.0,0.0001382,2]
[401268961,1768086639014,-500.0,0.0001382,2]
[401268963,1768086639024,-500.0,0.0001382,2]
[401268965,1768086639037,-500.0,0.0001382,2]
[401268967,1768086639047,-500.0,0.0001382,2]
[401268969,1768086639057,-500.0,0.0001382,2]
[401268971,1768086639066,-500.0,0.0001382,2]
[401268973,1768086639076,-500.0,0.0001382,2]
[401268975,1768086639086,-500.0,0.0001382,2]
[401268977,1768086639096,-500.0,0.0001382,2]
[401268979,1768086639105,-500.0,0.0001382,2]
[401268981,1768086639115,-500.0,0.0001382,2]
[401268983,1768086639125,-500.0,0.0001382,2]
[401268985,1768086639134,-500.0,0.0001382,2]
[401268987,1768086639143,-500.0,0.0001382,2]
[401268989,1768086639153,-500.0,0.0001382,2]
[401268991,1768086639162,-384.59166539,0.0001382,2]
[401268992,1768086639172,-500.0,0.0001382,2]
[401268994,1768086639181,-500.0,0.0001382,2]
[401268996,1768086639190,-500.0,0.0001382,2]
[401268998,1768086639200,-500.0,0.0001382,2]
[401269000,1768086639210,-500.0,0.0001382,2]
[401269002,1768086639219,-500.0,0.0001382,2]
[401269004,1768086639229,-500.0,0.0001382,2]
[401269006,1768086639238,-500.0,0.0001382,2]
[401269008,1768086639248,-490.27864179,0.0001382,2]
[401269011,1768086639258,-629.23612009,0.0001382,2]
[401269013,1768086639268,-1000.0,0.00013821,2]
[401269015,1768086639278,-1000.0,0.00013821,2]
[401269017,1768086639292,-452.94469565,0.00013821,2]
[401269019,1768086639302,-500.0,0.00013821,2]
[401269021,1768086639311,-1000.0,0.00013821,2]
[401269023,1768086639321,-1000.0,0.00013821,2]
[401269025,1768086639330,-1000.0,0.00013821,2]
[401269027,1768086639340,-1000.0,0.00013821,2]
[401269029,1768086639351,-1000.0,0.00013821,2]
[401269031,1768086639360,-600.0,0.00014221,2]
[401269033,1768086639370,-541.12357041,0.00014247,2]
[401269035,1768086639379,-1000.0,0.00014247,2]
[401269037,1768086639389,-500.0,0.00014247,2]
[401269039,1768086639399,-500.68920715,0.00014247,2]
[401269041,1768086639408,-230.23234032,0.00014247,2]
[401269043,1768086639418,-500.0,0.00014247,2]
[401269045,1768086639427,-1000.0,0.00014247,2]
[401269047,1768086639437,-1000.0,0.00014247,2]
[401269049,1768086639446,-661.95893033,0.00014247,2]
[401269051,1768086639456,-1000.0,0.00014247,2]
[401269053,1768086639466,-318.61518873,0.00014247,2]
[401269055,1768086639476,-1029.61129365,0.00014247,2]
[401269057,1768086639485,-506.84567032,0.00014247,2]
[401269059,1768086639494,-1108.00999349,0.00014247,2]
[401269061,1768086639503,-1000.0,0.00014247,2]
[401269063,1768086639513,-401.32615051,0.00014247,2]
[401269065,1768086639522,-500.0,0.00014247,2]
[401269067,1768086639531,-1000.0,0.00014247,2]
[401269069,1768086639541,-607.41040289,0.00014247,2]
[401269071,1768086639550,-1000.0,0.00014247,2]
[401269073,1768086639560,-1000.0,0.00014247,2]
[401269075,1768086639570,-587.0,0.00014268,2]
[401269077,1768086639579,-1500.0,0.00014368,2]
[401269079,1768086639588,-1500.0,0.00014368,2]
[401269081,1768086639597,-1500.0,0.00014368,2]
[401269083,1768086639606,-1500.0,0.00014368,2]
[401269085,1768086639615,-1500.0,0.00014368,2]
[401269087,1768086639626,-1500.0,0.00014368,2]
[401269090,1768086639636,-864.0,0.00014731,2]
[401269092,1768086639645,-900.0,0.00014768,2]
[401269094,1768086639655,-1500.0,0.00014795,2]
[401269096,1768086639665,-594.37321714,0.00014795,2]
[401269097,1768086639675,-1500.0,0.00014795,2]
[401269100,1768086639687,-1500.0,0.00014795,2]
[401269102,1768086639696,-1004.51727604,0.00014795,2]
[401269104,1768086639705,-1500.0,0.00014795,2]
[401269106,1768086639715,-644.01857865,0.00014795,2]
[401269108,1768086639725,-1134.65901332,0.00014795,2]
[401269110,1768086639735,-766.87961262,0.00014916,2]
[401269112,1768086639745,-2000.0,0.00014916,2]
[401269114,1768086639755,-351.48708989,0.00014916,2]
[401269116,1768086639765,-250.0,0.00015333,2]
[401269118,1768086639775,-1000.0,0.00015342,2]
[401269120,1768086639785,-779.0,0.00015666,2]
[401269122,1768086639795,-204.0,0.0001577,2]
[401269124,1768086639804,-3000.0,0.00016,2]
[401269126,1768086639813,-3000.0,0.0001601,2]
[401269128,1768086639823,-3000.0,0.0001602,2]
[401269130,1768086639833,-3798.918734,0.0001603,2]
[401269132,1768086639843,-1000.0,0.00016205,2]
[401269134,1768086639853,-231.0,0.0001777,2]
[401269136,1768086639862,-1000.0,0.00017825,2]
[401269138,1768086639872,-244.0,0.00017825,2]
[401269140,1768086639881,-303.10001603,0.000189,2]
[401269142,1768086639891,-303.10001603,0.00019089,2]
[401269144,1768086639901,-303.10001603,0.00019278,2]
[401269146,1768086639910,-303.10001603,0.00019467,2]
[401269148,1768086639920,-1000.0,0.00019608,2]
[401269150,1768086639929,-492.0,0.00019608,2]
[401269153,1768086639939,-303.10001603,0.00019656,2]
[401269155,1768086639949,-1041.66666667,0.00019714,2]
[401269156,1768086639959,-258.0,0.0001977,2]
[401269159,1768086639968,-454.65002405,0.00019845,4]
[401269161,1768086639978,-454.65002405,0.00020034,4]
[401269163,1768086639987,-454.65002405,0.00020223,4]
[401269165,1768086639996,-454.65002405,0.00020412,4]
[401269166,1768086640006,-2001.305979,0.00020548,2]
[401269168,1768086640015,-301.57435522,0.00020601,4]
[401269171,1768086640026,-1000.0,0.00021568,10]
[401269173,1768086640036,-791.0,0.00021568,10]
[401269175,1768086640045,-285.0,0.0002177,2]
[401269177,1768086640055,-151.0,0.0002338,2]
[401269179,1768086640065,-151.0,0.0002338,2]
[401269180,1768086640074,-151.0,0.0002338,2]
[401269182,1768086640084,-151.0,0.0002338,2]
[401269185,1768086640094,-151.0,0.0002338,2]
[401269187,1768086640103,-186.93139101,0.0002338,2]
[401269189,1768086640112,-1000.0,0.00023725,10]
[401269191,1768086640122,-1000.0,0.00023725,10]
[401269193,1768086640131,-312.0,0.0002377,2]
[401269195,1768086640141,-712.06243302,0.00024388,2]
[401269197,1768086640150,-157.0,0.00024877,14]
[401269199,1768086640160,-150.1,0.00025202,2]
[401269201,1768086640169,-500.0,0.00025343,2]
[401269203,1768086640178,-258.0,0.00025343,2]
[401269204,1768086640187,-250.0,0.00025343,2]
[401269206,1768086640196,-500.0,0.0002548,2]
[401269208,1768086640206,-500.0,0.00025617,2]
[401269211,1768086640215,-200.0,0.00025617,2]
[401269213,1768086640225,-339.0,0.0002577,2]
[401269215,1768086640234,-1000.0,0.00026098,10]
[401269217,1768086640244,-1000.0,0.00026098,10]
[401269219,1768086640253,-579.0,0.00026098,10]
[401269221,1768086640263,-366.0,0.0002777,2]
[401269223,1768086640273,-1000.0,0.00028707,30]
[401269225,1768086640283,-1000.0,0.00028707,30]
[401269227,1768086640296,-1000.0,0.00028707,30]
[401269229,1768086640306,-393.0,0.0002977,2]
[401269231,1768086640316,-300.0,0.00030137,5]
[401269233,1768086640327,-166.893,0.00030318,25]
[401269235,1768086640336,-1000.0,0.00031578,30]
[401269237,1768086640347,-1000.0,0.00031578,30]
[401269239,1768086640357,-1000.0,0.00031578,30]
[401269241,1768086640366,-715.0,0.00031578,30]
[401269243,1768086640376,-1162.64,0.000316,14]
[401269245,1768086640385,-420.0,0.0003177,2]
[401269247,1768086640394,-999.0,0.00032876,120]
[401269249,1768086640403,-213.87,0.00032877,10]
[401269251,1768086640413,-450.0,0.00032877,5]
[401269253,1768086640423,-312.8,0.00032877,10]
[401269256,1768086640433,-3000.0,0.00033,14]
[401269258,1768086640442,-3000.0,0.0003301,14]
[401269260,1768086640452,-3000.0,0.0003302,14]
[401269262,1768086640461,-3000.0,0.0003303,14]
[401269264,1768086640471,-3000.0,0.0003304,14]
[401269266,1768086640481,-3000.0,0.0003305,14]
[401269268,1768086640491,-3000.0,0.0003306,14]
[401269270,1768086640500,-3000.0,0.0003307,14]
[401269271,1768086640510,-3000.0,0.0003308,14]
[401269273,1768086640519,-3000.0,0.0003309,14]
[401269275,1768086640528,-3000.0,0.000331,14]
[401269278,1768086640539,-3000.0,0.0003311,14]
[401269279,1768086640549,-3000.0,0.0003312,14]
[401269282,1768086640559,-3000.0,0.0003313,14]
[401269284,1768086640568,-3000.0,0.0003314,14]
[401269285,1768086640577,-3000.0,0.0003315,14]
[401269286,1768086640586,-3000.0,0.0003316,14]
[401269287,1768086640595,-3000.0,0.0003317,14]
[401269288,1768086640603,-3000.0,0.0003318,15]
[401269289,1768086640612,-3000.0,0.0003319,15]
[401269290,1768086640621,-3000.0,0.000332,15]
[401269291,1768086640630,-3000.0,0.0003321,15]
[401269292,1768086640639,-3000.0,0.0003322,15]
[401269293,1768086640648,-3000.0,0.0003323,15]
[401269294,1768086640657,-3000.0,0.0003324,15]
[401269295,1768086640666,-3000.0,0.0003325,15]
[401269296,1768086640675,-3000.0,0.0003326,15]
[401269297,1768086640684,-3000.0,0.0003327,15]
[401269298,1768086640692,-3000.0,0.0003328,15]
[401269299,1768086640701,-3000.0,0.0003329,15]
[401269300,1768086640710,-3000.0,0.000333,15]
[401269301,1768086640719,-3000.0,0.0003331,15]
[401269302,1768086640728,-3000.0,0.0003332,15]
[401269303,1768086640737,-3000.0,0.0003333,15]
[401269304,1768086640745,-3000.0,0.0003334,15]
[401269305,1768086640754,-3000.0,0.0003335,15]
[401269306,1768086640763,-3000.0,0.0003336,15]
[401269308,1768086640771,-3000.0,0.0003337,15]
[401269309,1768086640780,-3000.0,0.0003338,15]
[401269310,1768086640789,-3000.0,0.0003339,15]
[401269312,1768086640800,-3000.0,0.000334,15]
[401269314,1768086640809,-3000.0,0.0003341,15]
[401269316,1768086640818,-3000.0,0.0003342,15]
[401269318,1768086640828,-5054.445359,0.0003343,15]
[401269320,1768086640837,-332.0,0.00033484,2]
[401269322,1768086640846,-447.0,0.0003377,120]
[401269324,1768086640855,-429.0,0.00033783,2]
[401269326,1768086640864,-697.65785671,0.00033972,120]
[401269328,1768086640873,-550.0,0.00034066,2]
[401269330,1768086640882,-1000.0,0.00034736,30]
[401269332,1768086640892,-1000.0,0.00034736,30]
[401269334,1768086640901,-1000.0,0.00034736,30]
[401269336,1768086640910,-4281.31477,0.0003498,30]
[401269338,1768086640919,-377.1655679,0.00035041,30]
[401269340,1768086640928,-376.4294039,0.00035151,30]
[401269342,1768086640937,-151.0,0.00035231,30]
[401269344,1768086640947,-1162.64,0.000353,30]
[401269346,1768086640956,-5141.39088923,0.00035442,30]
[401269348,1768086640964,-725.0,0.00035552,30]
[401269350,1768086640974,-886.5,0.00035552,30]
[401269352,1768086640983,-500.0,0.00035616,30]
[401269355,1768086640992,-600.0,0.00035616,5]
[401269357,1768086641002,-474.0,0.0003577,120]
[401269359,1768086641011,-19508.97476145,0.00035937,4]
[401269360,1768086641021,-532.55,0.00036164,30]
[401269363,1768086641030,-95986.0676826,0.000367,16]
[401269364,1768086641041,-517.57408613,0.00036712,30]
[401269367,1768086641051,-502.13581752,0.00036712,30]
[401269369,1768086641061,-503.58612392,0.00036712,30]
[401269371,1768086641070,-510.26854716,0.00036712,30]
[401269372,1768086641079,-508.72813219,0.00036712,30]
[401269374,1768086641089,-504.58187361,0.00036712,30]
[401269376,1768086641098,-564.76418067,0.00036712,30]
[401269378,1768086641108,-500.0,0.00036712,30]
[401269381,1768086641120,-503.30308502,0.00036712,30]
[401269383,1768086641130,-194.07996615,0.00036712,30]
[401269385,1768086641139,-492.31732817,0.00036712,30]
[401269387,1768086641149,-505.57663018,0.00036712,30]
[401269389,1768086641158,-500.0,0.00036712,30]
[401269391,1768086641167,-607.40648212,0.00036712,30]
[401269393,1768086641177,-501.82493235,0.00036712,30]
[401269406,1768086641186,-558.93259769,0.00036712,30]
[401269408,1768086641296,-500.0,0.00036712,30]
[401269410,1768086641305,-508.39005732,0.00036712,30]
[401269412,1768086641315,-507.63257534,0.00036712,30]
[401269414,1768086641324,-209.54240035,0.00036712,30]
[401269416,1768086641334,-504.16898208,0.00036712,30]
[401269418,1768086641345,-579.98652351,0.00036712,30]
[401269420,1768086641354,-542.99461457,0.00036712,30]
[401269422,1768086641363,-500.0,0.00036712,30]
[401269424,1768086641372,-501.89111587,0.00036712,30]
[401269426,1768086641382,-502.66091755,0.00036712,30]
[401269428,1768086641392,-503.06777824,0.00036712,30]
[401269430,1768086641401,-507.24783231,0.00036712,30]
[401269432,1768086641411,-505.46772079,0.00036712,30]
[401269434,1768086641420,-500.0,0.00036712,30]
[401269436,1768086641430,-540.54333116,0.00036712,30]
[401269438,1768086641439,-503.2619597,0.00036712,30]
[401269440,1768086641448,-501.02569077,0.00036712,30]
[401269442,1768086641458,-514.50960578,0.00036712,30]
[401269444,1768086641468,-526.00258127,0.00036712,30]
[401269446,1768086641479,-508.62032327,0.00036712,30]
[401269448,1768086641488,-514.56204005,0.00036712,30]
[401269450,1768086641498,-534.50551265,0.00036712,30]
[401269452,1768086641508,-502.23705915,0.00036712,30]
[401269454,1768086641518,-510.91021208,0.00036712,30]
[401269456,1768086641527,-16880.2,0.00036712,30]
[401269458,1768086641536,-16880.2,0.00036712,30]
[401269460,1768086641545,-16880.2,0.00036712,30]
[401269462,1768086641555,-16880.2,0.00036712,30]
[401269464,1768086641564,-16880.2,0.00036712,30]
[401269466,1768086641572,-16880.2,0.00036712,30]
[401269468,1768086641582,-16880.2,0.00036712,30]
[401269470,1768086641591,-16880.2,0.00036712,30]
[401269472,1768086641601,-16880.2,0.00036712,30]
[401269474,1768086641610,-16880.2,0.00036712,30]
[401269475,1768086641620,-16880.2,0.00036712,30]
[401269476,1768086641629,-16880.2,0.00036712,30]
[401269477,1768086641639,-16880.2,0.00036712,30]
[401269478,1768086641648,-16880.2,0.00036712,30]
[401269479,1768086641658,-548.84786937,0.00036712,30]
[401269480,1768086641667,-16880.2,0.00036712,30]
[401269481,1768086641677,-16880.2,0.00036712,30]
[401269482,1768086641687,-16880.2,0.00036712,30]
[401269483,1768086641697,-16880.2,0.00036712,30]
[401269484,1768086641707,-16880.2,0.00036712,30]
[401269485,1768086641716,-16880.2,0.00036712,30]
[401269486,1768086641726,-16880.2,0.00036712,30]
[401269487,1768086641735,-16880.2,0.00036712,30]
[401269488,1768086641745,-16880.2,0.00036712,30]
[401269489,1768086641755,-16880.27659401,0.00036712,30]
[401269490,1768086641764,-508.03333953,0.00036712,30]
[401269491,1768086641774,-502.73324908,0.00036712,30]
[401269492,1768086641784,-609.31321311,0.00036712,30]
[401269493,1768086641793,-506.12528413,0.00036712,30]
[401269494,1768086641803,-500.0,0.00036712,30]
[401269495,1768086641811,-2479.36,0.00036712,30]
[401269496,1768086641821,-2479.36,0.00036712,30]
[401269497,1768086641830,-2479.36,0.00036712,30]
[401269498,1768086641840,-2479.36,0.00036712,30]
[401269499,1768086641849,-2479.36,0.00036712,30]
[401269500,1768086641859,-2479.36,0.00036712,30]
[401269501,1768086641868,-424.5297913,0.00036712,30]
[401269502,1768086641878,-2479.36,0.00036712,30]
[401269503,1768086641887,-2479.36,0.00036712,30]
[401269504,1768086641896,-2479.36,0.00036712,30]
[401269505,1768086641905,-2479.36,0.00036712,30]
[401269506,1768086641915,-2479.36,0.00036712,30]
[401269507,1768086641925,-2479.36,0.00036712,30]
[401269508,1768086641934,-2479.36,0.00036712,30]
[401269509,1768086641943,-2479.36,0.00036712,30]
[401269510,1768086641952,-2479.36,0.00036712,30]
[401269511,1768086641961,-2479.36,0.00036712,30]
[401269512,1768086641971,-2479.36,0.00036712,30]
[401269513,1768086641981,-2479.36,0.00036712,30]
[401269514,1768086641991,-2479.36,0.00036712,30]
[401269515,1768086641999,-2479.36,0.00036712,30]
[401269516,1768086642008,-2479.36,0.00036712,30]
[401269517,1768086642017,-2479.36,0.00036712,30]
[401269518,1768086642027,-2479.36,0.00036712,30]
[401269519,1768086642036,-2479.42,0.00036712,30]
[401269520,1768086642045,-1754.82,0.00036712,30]
[401269521,1768086642054,-1754.82,0.00036712,30]
[401269522,1768086642064,-1754.82,0.00036712,30]
[401269523,1768086642073,-1754.82,0.00036712,30]
[401269524,1768086642082,-1754.82,0.00036712,30]
[401269525,1768086642091,-1754.82,0.00036712,30]
[401269526,1768086642100,-1754.82,0.00036712,30]
[401269527,1768086642110,-1754.82,0.00036712,30]